[Event "FIDE Women World Rapid 2024"]
[Site "New York"]
[Date "2024.12.27"]
[Round "5.21"]
[White "Munkhzul, Davaakhuu"]
[Black "Wu, Rochelle"]
[Result "1/2-1/2"]
[ECO "B33"]
[WhiteElo "2138"]
[BlackElo "2237"]
[Annotator "ChessBase"]
[PlyCount "44"]
[EventDate "2024.12.14"]
[EventType "swiss"]
[EventCountry "USA"]
[SourceTitle "playchess.com"]
[Source "ChessBase"]
[SourceQuality "1"]
[TimeControl "900+10"]

1. e4 {[%emt 0:01:07]} c5 {[%emt 0:00:01]} 2. Nf3 {[%emt 0:00:01]} d6 {[%emt 0:00:01]} 3. d4 {[%emt 0:00:01]} cxd4 {[%emt 0:00:01]} 4. Nxd4 {[%emt 0:00:01]} Nf6 {[%emt 0:00:02]} 5. Nc3 {[%emt 0:00:01]} Nc6 {[%emt 0:00:02]} 6. Nxc6 {[%emt 0:00:08]} bxc6 {[%emt 0:00:03]} 7. Be3 {[%emt 0:00:01]} e5 {[%emt 0:00:02]} 8. Bc4 {[%emt 0:00:08]} Be7 {[%emt 0:00:06]} 9. O-O {[%emt 0:00:03]} O-O {[%emt 0:00:04]} 10. Qd2 {[%emt 0:00:05]} Be6 {[%emt 0:00:07]} 11. Bxe6 {[%emt 0:00:02]} fxe6 {[%emt 0:00:02]} 12. Bg5 {[%emt 0:00:06]} d5 {[%emt 0:00:05]} 13. exd5 {[%emt 0:00:06]} exd5 {[%emt 0:00:03]} 14. Rfe1 {[%emt 0:00:10]} Qc7 {[%emt 0:00:05]} 15. Bxf6 {[%emt 0:00:13]} Bxf6 {[%emt 0:00:08]} 16. Na4 {[%emt 0:00:08]} e4 {[%emt 0:00:09]} 17. c3 {[%emt 0:00:05]} Rae8 {[%emt 0:00:06]} 18. Nc5 {[%emt 0:00:06]} Qf7 {[%emt 0:00:33]} 19. Re2 {[%emt 0:00:37]} Re7 {[%emt 0:00:14]} 20. Ree1 {[%emt 0:00:26]} Ree8 {[%emt 0:00:09]} 21. Re2 {[%emt 0:00:05]} Re7 {[%emt 0:00:03]} 22. Ree1 {[%emt 0:00:02]} Ree8 {[%emt 0:00:04]} 1/2-1/2

[Event "FIDE Women World Rapid 2024"]
[Site "New York"]
[Date "2024.12.27"]
[Round "5.22"]
[White "Balajayeva, Khanim"]
[Black "Guichard, Pauline"]
[Result "1/2-1/2"]
[ECO "B13"]
[WhiteElo "2362"]
[BlackElo "2357"]
[Annotator "ChessBase"]
[PlyCount "74"]
[EventDate "2024.12.14"]
[EventType "swiss"]
[EventCountry "USA"]
[SourceTitle "playchess.com"]
[Source "ChessBase"]
[SourceQuality "1"]
[TimeControl "900+10"]

1. e4 {[%emt 0:00:01]} c6 {[%emt 0:00:01]} 2. d4 {[%emt 0:00:03]} d5 {[%emt 0:00:02]} 3. exd5 {[%emt 0:00:02]} cxd5 {[%emt 0:00:02]} 4. Bd3 {[%emt 0:00:01]} Nc6 {[%emt 0:00:02]} 5. c3 {[%emt 0:00:01]} Nf6 {[%emt 0:00:03]} 6. Bf4 {[%emt 0:00:12]} Bg4 {[%emt 0:00:10]} 7. Qb3 {[%emt 0:00:03]} Qd7 {[%emt 0:00:02]} 8. Nd2 {[%emt 0:00:28]} e6 {[%emt 0:00:02]} 9. Ngf3 {[%emt 0:00:48]} Bd6 {[%emt 0:00:02]} 10. Bxd6 {[%emt 0:00:04]} Qxd6 {[%emt 0:00:02]} 11. O-O {[%emt 0:00:02]} O-O {[%emt 0:00:08]} 12. Rfe1 {[%emt 0:00:06]} Ne7 {[%emt 0:00:08]} 13. Ne5 {[%emt 0:03:11]} Bf5 {[%emt 0:00:05]} 14. Bxf5 {[%emt 0:00:18]} Nxf5 {[%emt 0:00:03]} 15. Nf1 {[%emt 0:00:23]} h5 {[%emt 0:01:58]} 16. Ne3 {[%emt 0:00:27]} Nxe3 {[%emt 0:01:51]} 17. Rxe3 {[%emt 0:00:01]} Ng4 {[%emt 0:00:01]} 18. Nxg4 {[%emt 0:01:35]} hxg4 {[%emt 0:00:02]} 19. Rae1 {[%emt 0:00:01]} Rae8 {[%emt 0:00:55]} 20. Qd1 {[%emt 0:00:40]} f5 {[%emt 0:00:19]} 21. Re5 {[%emt 0:00:02]} Rf6 {[%emt 0:00:38]} 22. Qa4 {[%emt 0:00:03]} Ra8 {[%emt 0:00:43]} 23. Qb5 {[%emt 0:00:09]} b6 {[%emt 0:00:29]} 24. c4 {[%emt 0:02:33]} a6 {[%emt 0:00:33]} 25. Qb3 {[%emt 0:00:09]} dxc4 {[%emt 0:00:11]} 26. Qxc4 {[%emt 0:00:01]} b5 {[%emt 0:00:17]} 27. Qb3 {[%emt 0:04:07]} Rc8 {[%emt 0:01:30]} 28. Rxe6 {[%emt 0:00:59]} Rxe6 {[%emt 0:00:02]} 29. Rxe6 {[%emt 0:00:01]} Kh7 {[%emt 0:00:01]} 30. Re1 {[%emt 0:00:56]} Qxd4 {[%emt 0:00:07]} 31. Qf7 {[%emt 0:00:23]} Qe5 {[%emt 0:02:58]} 32. Kf1 {[%emt 0:00:15]} Qf6 {[%emt 0:01:11]} 33. Qh5+ {[%emt 0:01:02]} Kg8 {[%emt 0:00:01]} 34. Re8+ {[%emt 0:00:02]} Rxe8 {[%emt 0:00:02]} 35. Qxe8+ {[%emt 0:00:00]} Kh7 {[%emt 0:00:01]} 36. Qh5+ {[%emt 0:00:02]} Kg8 {[%emt 0:00:01]} 37. Qe8+ {[%emt 0:00:01]} Kh7 {[%emt 0:00:01]} 1/2-1/2

[Event "FIDE Women World Rapid 2024"]
[Site "New York"]
[Date "2024.12.27"]
[Round "5.22"]
[White "Krasteva, Beloslava"]
[Black "Noshin, Anjum"]
[Result "1-0"]
[ECO "D10"]
[WhiteElo "2281"]
[BlackElo "2029"]
[Annotator "ChessBase"]
[PlyCount "89"]
[EventDate "2024.12.14"]
[EventType "swiss"]
[EventCountry "USA"]
[SourceTitle "playchess.com"]
[Source "ChessBase"]
[SourceQuality "1"]
[TimeControl "900+10"]

1. d4 {[%emt 0:00:02]} d5 {[%emt 0:00:02]} 2. c4 {[%emt 0:00:02]} c6 {[%emt 0:00:04]} 3. cxd5 {[%emt 0:00:05]} cxd5 {[%emt 0:00:02]} 4. Bf4 {[%emt 0:00:02]} Nc6 {[%emt 0:00:07]} 5. e3 {[%emt 0:00:03]} Nf6 {[%emt 0:00:09]} 6. Bd3 {[%emt 0:00:05]} a6 {[%emt 0:00:25]} 7. h3 {[%emt 0:00:03]} Qb6 {[%emt 0:01:09]} 8. Nc3 {[%emt 0:00:42]} e6 {[%emt 0:01:04]} 9. Nge2 {[%emt 0:00:53]} Bd7 {[%emt 0:02:19]} 10. O-O {[%emt 0:00:09]} Be7 {[%emt 0:00:15]} 11. a3 {[%emt 0:01:58]} Rc8 {[%emt 0:00:57]} 12. b4 {[%emt 0:01:55]} Na7 {[%emt 0:02:07]} 13. Na4 {[%emt 0:00:20]} Bxa4 {[%emt 0:00:25]} 14. Qxa4+ {[%emt 0:00:02]} Nb5 {[%emt 0:00:01]} 15. Rfc1 {[%emt 0:00:49]} O-O {[%emt 0:00:02]} 16. Qb3 {[%emt 0:00:55]} Bd6 {[%emt 0:02:30]} 17. a4 {[%emt 0:02:23]} Na7 {[%emt 0:00:45]} 18. Bxd6 {[%emt 0:02:16]} Qxd6 {[%emt 0:00:01]} 19. b5 {[%emt 0:00:05]} g6 {[%emt 0:01:41]} 20. bxa6 {[%emt 0:00:31]} bxa6 {[%emt 0:00:02]} 21. Qb7 {[%emt 0:00:10]} Qd7 {[%emt 0:02:58]} 22. Qxd7 {[%emt 0:00:15]} Nxd7 {[%emt 0:00:03]} 23. Bxa6 {[%emt 0:00:02]} Rxc1+ {[%emt 0:01:02]} 24. Rxc1 {[%emt 0:00:01]} Nb8 {[%emt 0:00:09]} 25. Bb7 {[%emt 0:00:33]} Nd7 {[%emt 0:00:27]} 26. Rc7 {[%emt 0:00:56]} Nb6 {[%emt 0:00:02]} 27. Bxd5 {[%emt 0:00:36]} exd5 {[%emt 0:00:30]} 28. Rxa7 {[%emt 0:00:02]} Rb8 {[%emt 0:00:12]} 29. Nf4 {[%emt 0:00:13]} Rc8 {[%emt 0:00:17]} 30. a5 {[%emt 0:00:08]} Rc1+ {[%emt 0:00:08]} 31. Kh2 {[%emt 0:00:01]} Nc4 {[%emt 0:00:08]} 32. Nxd5 {[%emt 0:00:08]} Nd2 {[%emt 0:00:07]} 33. Kg3 {[%emt 0:01:14]} Nf1+ {[%emt 0:00:19]} 34. Kf3 {[%emt 0:00:13]} Nd2+ {[%emt 0:00:09]} 35. Ke2 {[%emt 0:00:05]} Nb3 {[%emt 0:00:03]} 36. a6 {[%emt 0:00:27]} Rc2+ {[%emt 0:00:06]} 37. Kd3 {[%emt 0:00:22]} Rxf2 {[%emt 0:00:03]} 38. Rd7 {[%emt 0:01:14]} Nc1+ {[%emt 0:00:20]} 39. Kc3 {[%emt 0:00:17]} Na2+ {[%emt 0:00:12]} 40. Kd3 {[%emt 0:00:32]} Nc1+ {[%emt 0:00:06]} 41. Ke4 {[%emt 0:00:15]} f5+ {[%emt 0:00:11]} 42. Ke5 {[%emt 0:00:01]} Nd3+ {[%emt 0:00:04]} 43. Ke6 {[%emt 0:00:14]} Ra2 {[%emt 0:00:24]} 44. Nf6+ {[%emt 0:00:07]} Kf8 {[%emt 0:00:07]} 45. Rf7# {[%emt 0:00:03]} 1-0

[Event "FIDE Women World Rapid 2024"]
[Site "New York"]
[Date "2024.12.27"]
[Round "5.23"]
[White "Kiolbasa, Oliwia"]
[Black "Zhao, Xue"]
[Result "0-1"]
[ECO "B01"]
[WhiteElo "2371"]
[BlackElo "2442"]
[Annotator "ChessBase"]
[PlyCount "92"]
[EventDate "2024.12.14"]
[EventType "swiss"]
[EventCountry "USA"]
[SourceTitle "playchess.com"]
[Source "ChessBase"]
[SourceQuality "1"]
[TimeControl "900+10"]

1. e4 {[%emt 0:00:02]} d5 {[%emt 0:00:09]} 2. exd5 {[%emt 0:00:05]} Qxd5 {[%emt 0:00:02]} 3. Nc3 {[%emt 0:00:05]} Qa5 {[%emt 0:00:05]} 4. d4 {[%emt 0:00:04]} Nf6 {[%emt 0:00:04]} 5. Nf3 {[%emt 0:00:08]} Bf5 {[%emt 0:00:06]} 6. Ne5 {[%emt 0:00:25]} c6 {[%emt 0:00:19]} 7. Bc4 {[%emt 0:00:28]} e6 {[%emt 0:00:10]} 8. g4 {[%emt 0:00:45]} Bg6 {[%emt 0:00:01]} 9. O-O {[%emt 0:00:57]} Nbd7 {[%emt 0:00:19]} 10. f4 {[%emt 0:00:56]} O-O-O {[%emt 0:03:16]} 11. Qe2 {[%emt 0:01:23]} Nxe5 {[%emt 0:03:11]} 12. fxe5 {[%emt 0:00:03]} Ne8 {[%emt 0:01:23]} 13. Be3 {[%emt 0:00:38]} h5 {[%emt 0:00:25]} 14. g5 {[%emt 0:00:29]} Bf5 {[%emt 0:01:08]} 15. Rxf5 {[%emt 0:00:36]} exf5 {[%emt 0:00:06]} 16. Bxf7 {[%emt 0:00:01]} Nc7 {[%emt 0:00:10]} 17. a3 {[%emt 0:00:57]} Be7 {[%emt 0:00:39]} 18. Rf1 {[%emt 0:00:19]} Qb6 {[%emt 0:00:33]} 19. Na4 {[%emt 0:04:11]} Qa5 {[%emt 0:00:17]} 20. Bb3 {[%emt 0:00:07]} f4 {[%emt 0:00:12]} 21. Bd2 {[%emt 0:00:58]} Qb5 {[%emt 0:00:00]} 22. Qe4 {[%emt 0:00:01]} Rhf8 {[%emt 0:00:17]} 23. Rxf4 {[%emt 0:00:21]} Bxg5 {[%emt 0:00:01]} 24. Nc3 {[%emt 0:01:50]} Qa6 {[%emt 0:00:01]} 25. Ne2 {[%emt 0:00:22]} Bxf4 {[%emt 0:00:18]} 26. Bxf4 {[%emt 0:00:01]} Nd5 {[%emt 0:00:44]} 27. Bg5 {[%emt 0:00:35]} Qa5 {[%emt 0:00:26]} 28. c3 {[%emt 0:00:22]} Rde8 {[%emt 0:00:22]} 29. Ng3 {[%emt 0:01:16]} Qb6 {[%emt 0:01:04]} 30. Bxd5 {[%emt 0:00:09]} cxd5 {[%emt 0:00:18]} 31. Qxd5 {[%emt 0:01:10]} Qxb2 {[%emt 0:00:02]} 32. Qc5+ {[%emt 0:00:33]} Kb8 {[%emt 0:00:05]} 33. d5 {[%emt 0:00:05]} h4 {[%emt 0:00:41]} 34. Be3 {[%emt 0:00:09]} Qb6 {[%emt 0:00:51]} 35. Qxb6 {[%emt 0:00:03]} axb6 {[%emt 0:00:01]} 36. Ne2 {[%emt 0:00:19]} Rxe5 {[%emt 0:00:02]} 37. Bf4 {[%emt 0:00:01]} Rxf4 {[%emt 0:00:01]} 38. Nxf4 {[%emt 0:00:01]} g5 {[%emt 0:00:01]} 39. Ne6 {[%emt 0:00:06]} Rxd5 {[%emt 0:00:03]} 40. Kg2 {[%emt 0:00:01]} Re5 {[%emt 0:00:14]} 41. Nd4 {[%emt 0:00:03]} Re3 {[%emt 0:00:15]} 42. Nb5 {[%emt 0:00:04]} Kc8 {[%emt 0:00:15]} 43. Kf2 {[%emt 0:00:29]} Rd3 {[%emt 0:00:06]} 44. a4 {[%emt 0:00:06]} Kd7 {[%emt 0:00:03]} 45. Nd4 {[%emt 0:00:09]} g4 {[%emt 0:00:25]} 46. Nf5 {[%emt 0:00:05]} Rf3+ {[%emt 0:00:01]} 0-1

[Event "FIDE Women World Rapid 2024"]
[Site "New York"]
[Date "2024.12.27"]
[Round "5.23"]
[White "Stanford, Sheila Barth"]
[Black "Durrfeld, Sofie Bech"]
[Result "1/2-1/2"]
[ECO "B27"]
[WhiteElo "2198"]
[BlackElo "1952"]
[Annotator "ChessBase"]
[PlyCount "206"]
[EventDate "2024.12.14"]
[EventType "swiss"]
[EventCountry "USA"]
[SourceTitle "playchess.com"]
[Source "ChessBase"]
[SourceQuality "1"]
[TimeControl "900+10"]

1. e4 {[%emt 0:00:02]} c5 {[%emt 0:00:02]} 2. Nf3 {[%emt 0:00:03]} g6 {[%emt 0:00:01]} 3. c3 {[%emt 0:00:12]} Nf6 {[%emt 0:00:11]} 4. e5 {[%emt 0:00:11]} Nd5 {[%emt 0:00:02]} 5. Qb3 {[%emt 0:00:12]} Nb6 {[%emt 0:00:50]} 6. d4 {[%emt 0:00:20]} cxd4 {[%emt 0:00:06]} 7. cxd4 {[%emt 0:00:03]} Bg7 {[%emt 0:00:09]} 8. a4 {[%emt 0:00:22]} a5 {[%emt 0:01:23]} 9. Bd3 {[%emt 0:01:20]} Nc6 {[%emt 0:00:21]} 10. O-O {[%emt 0:00:25]} O-O {[%emt 0:00:11]} 11. Be3 {[%emt 0:00:13]} Nb4 {[%emt 0:00:30]} 12. Be4 {[%emt 0:00:39]} d6 {[%emt 0:00:23]} 13. Nc3 {[%emt 0:00:44]} dxe5 {[%emt 0:00:26]} 14. dxe5 {[%emt 0:00:45]} Be6 {[%emt 0:00:28]} 15. Qd1 {[%emt 0:00:17]} Qxd1 {[%emt 0:01:01]} 16. Nxd1 {[%emt 0:01:26]} N6d5 {[%emt 0:00:32]} 17. Bd4 {[%emt 0:00:38]} Rac8 {[%emt 0:00:40]} 18. Nc3 {[%emt 0:00:21]} Rfd8 {[%emt 0:00:35]} 19. Rfd1 {[%emt 0:00:24]} h6 {[%emt 0:01:08]} 20. h3 {[%emt 0:00:04]} Rd7 {[%emt 0:01:02]} 21. Nxd5 {[%emt 0:00:43]} Nxd5 {[%emt 0:00:10]} 22. Rac1 {[%emt 0:00:24]} Rcd8 {[%emt 0:00:18]} 23. Bc5 {[%emt 0:00:52]} Nf4 {[%emt 0:00:30]} 24. Rxd7 {[%emt 0:00:03]} Rxd7 {[%emt 0:00:09]} 25. Kh2 {[%emt 0:00:15]} Nd3 {[%emt 0:00:53]} 26. Bxd3 {[%emt 0:02:03]} Rxd3 {[%emt 0:00:01]} 27. Bxe7 {[%emt 0:00:02]} Rb3 {[%emt 0:01:13]} 28. Rc2 {[%emt 0:00:21]} Bf5 {[%emt 0:00:36]} 29. Re2 {[%emt 0:00:18]} Bd7 {[%emt 0:00:28]} 30. Bd6 {[%emt 0:03:52]} Bxa4 {[%emt 0:00:19]} 31. Rd2 {[%emt 0:00:01]} Bc6 {[%emt 0:00:28]} 32. Nd4 {[%emt 0:00:02]} Rb6 {[%emt 0:00:18]} 33. f4 {[%emt 0:00:29]} a4 {[%emt 0:00:52]} 34. Bc5 {[%emt 0:00:28]} Ra6 {[%emt 0:00:02]} 35. Nc2 {[%emt 0:00:04]} Ra8 {[%emt 0:00:17]} 36. Nb4 {[%emt 0:00:11]} Bb5 {[%emt 0:00:24]} 37. Nd5 {[%emt 0:00:08]} g5 {[%emt 0:00:50]} 38. g3 {[%emt 0:00:08]} Kh7 {[%emt 0:00:24]} 39. Be7 {[%emt 0:00:44]} gxf4 {[%emt 0:00:17]} 40. gxf4 {[%emt 0:00:04]} Rc8 {[%emt 0:00:25]} 41. Nc3 {[%emt 0:00:37]} Bc6 {[%emt 0:00:09]} 42. Rd4 {[%emt 0:00:11]} Ra8 {[%emt 0:00:27]} 43. Bd6 {[%emt 0:00:13]} h5 {[%emt 0:00:44]} 44. f5 {[%emt 0:00:19]} a3 {[%emt 0:00:08]} 45. f6 {[%emt 0:01:01]} a2 {[%emt 0:00:54]} 46. Nxa2 {[%emt 0:00:02]} Rxa2 {[%emt 0:00:04]} 47. fxg7 {[%emt 0:00:02]} Rxb2+ {[%emt 0:00:04]} 48. Kg3 {[%emt 0:00:02]} Kxg7 {[%emt 0:00:10]} 49. Kh4 {[%emt 0:00:10]} Kg6 {[%emt 0:00:14]} 50. Rd3 {[%emt 0:00:09]} Rg2 {[%emt 0:00:40]} 51. Rb3 {[%emt 0:00:26]} b5 {[%emt 0:00:15]} 52. Rb4 {[%emt 0:00:21]} Rf2 {[%emt 0:00:18]} 53. Kg3 {[%emt 0:00:09]} Rf3+ {[%emt 0:00:15]} 54. Kh4 {[%emt 0:00:03]} Bd7 {[%emt 0:00:11]} 55. e6 {[%emt 0:00:20]} Bxe6 {[%emt 0:00:06]} 56. Bg3 {[%emt 0:00:03]} Bc4 {[%emt 0:00:10]} 57. Rb2 {[%emt 0:00:15]} Re3 {[%emt 0:00:06]} 58. Bf4 {[%emt 0:00:06]} Re4 {[%emt 0:00:08]} 59. Kg3 {[%emt 0:00:06]} h4+ {[%emt 0:00:16]} 60. Kf3 {[%emt 0:00:10]} Rd4 {[%emt 0:00:20]} 61. Rg2+ {[%emt 0:00:11]} Kf5 {[%emt 0:00:28]} 62. Rg5+ {[%emt 0:00:16]} Ke6 {[%emt 0:00:02]} 63. Re5+ {[%emt 0:00:01]} Kd7 {[%emt 0:00:03]} 64. Be3 {[%emt 0:00:12]} Rd3 {[%emt 0:00:06]} 65. Ke4 {[%emt 0:00:03]} Rd1 {[%emt 0:00:06]} 66. Rh5 {[%emt 0:00:28]} b4 {[%emt 0:00:16]} 67. Bd4 {[%emt 0:00:12]} b3 {[%emt 0:00:08]} 68. Rh8 {[%emt 0:00:15]} Rd3 {[%emt 0:00:15]} 69. Rb8 {[%emt 0:00:10]} Rxh3 {[%emt 0:00:05]} 70. Rb7+ {[%emt 0:00:01]} Ke6 {[%emt 0:00:06]} 71. Rb6+ {[%emt 0:00:07]} Ke7 {[%emt 0:00:06]} 72. Bf6+ {[%emt 0:00:03]} Kd7 {[%emt 0:00:09]} 73. Kd4 {[%emt 0:00:24]} Be6 {[%emt 0:00:06]} 74. Kc5 {[%emt 0:00:03]} Rh1 {[%emt 0:00:14]} 75. Bg5 {[%emt 0:00:10]} Rh2 {[%emt 0:00:12]} 76. Rd6+ {[%emt 0:00:17]} Kc8 {[%emt 0:00:07]} 77. Rc6+ {[%emt 0:00:02]} Kb7 {[%emt 0:00:04]} 78. Rb6+ {[%emt 0:00:04]} Ka7 {[%emt 0:00:12]} 79. Rb4 {[%emt 0:00:04]} Rc2+ {[%emt 0:00:09]} 80. Kd6 {[%emt 0:00:04]} b2 {[%emt 0:00:09]} 81. Bxh4 {[%emt 0:00:27]} Rd2+ {[%emt 0:00:28]} 82. Kc6 {[%emt 0:00:08]} Rc2+ {[%emt 0:00:01]} 83. Kd6 {[%emt 0:00:02]} Bf5 {[%emt 0:00:02]} 84. Bf6 {[%emt 0:00:29]} Rd2+ {[%emt 0:00:10]} 85. Kc6 {[%emt 0:00:02]} Rc2+ {[%emt 0:00:41]} 86. Kb5 {[%emt 0:00:23]} Bd7+ {[%emt 0:00:14]} 87. Ka5 {[%emt 0:00:12]} b1=Q {[%emt 0:00:11]} 88. Rxb1 {[%emt 0:00:04]} Ra2+ {[%emt 0:00:09]} 89. Kb4 {[%emt 0:00:04]} Ra6 {[%emt 0:00:03]} 90. Bd4+ {[%emt 0:00:06]} Kb7 {[%emt 0:00:09]} 91. Kc5+ {[%emt 0:00:02]} Kc8 {[%emt 0:00:05]} 92. Be5 {[%emt 0:00:19]} Be6 {[%emt 0:00:11]} 93. Rb8+ {[%emt 0:00:15]} Kd7 {[%emt 0:00:01]} 94. Rb7+ {[%emt 0:00:09]} Ke8 {[%emt 0:00:03]} 95. Rb8+ {[%emt 0:00:08]} Ke7 {[%emt 0:00:02]} 96. Rb7+ {[%emt 0:00:06]} Bd7 {[%emt 0:00:04]} 97. Rb6 {[%emt 0:00:10]} Ra5+ {[%emt 0:00:03]} 98. Kd4 {[%emt 0:00:03]} Be6 {[%emt 0:00:10]} 99. Rb7+ {[%emt 0:00:12]} Bd7 {[%emt 0:00:16]} 100. Rb6 {[%emt 0:00:06]} Ra4+ {[%emt 0:00:02]} 101. Ke3 {[%emt 0:00:13]} Rc4 {[%emt 0:00:08]} 102. Bf6+ {[%emt 0:00:09]} Ke8 {[%emt 0:00:06]} 103. Rd6 {[%emt 0:00:24]} Rc6 {[%emt 0:00:36]} 1/2-1/2

[Event "FIDE Women World Rapid 2024"]
[Site "New York"]
[Date "2024.12.27"]
[Round "5.24"]
[White "Huang, Qian"]
[Black "Toncheva, Nadya"]
[Result "1-0"]
[ECO "A37"]
[WhiteElo "2370"]
[BlackElo "2298"]
[Annotator "ChessBase"]
[PlyCount "99"]
[EventDate "2024.12.14"]
[EventType "swiss"]
[EventCountry "USA"]
[SourceTitle "playchess.com"]
[Source "ChessBase"]
[SourceQuality "1"]
[TimeControl "900+10"]

1. c4 {[%emt 0:00:03]} c5 {[%emt 0:00:03]} 2. Nf3 {[%emt 0:00:05]} g6 {[%emt 0:00:02]} 3. g3 {[%emt 0:01:38]} Bg7 {[%emt 0:00:02]} 4. Bg2 {[%emt 0:00:01]} Nc6 {[%emt 0:00:01]} 5. Nc3 {[%emt 0:00:03]} e6 {[%emt 0:00:02]} 6. O-O {[%emt 0:00:10]} Nge7 {[%emt 0:00:02]} 7. d3 {[%emt 0:00:15]} O-O {[%emt 0:00:08]} 8. Bd2 {[%emt 0:00:16]} d5 {[%emt 0:00:08]} 9. cxd5 {[%emt 0:00:02]} exd5 {[%emt 0:00:03]} 10. Rc1 {[%emt 0:00:02]} h6 {[%emt 0:01:01]} 11. a3 {[%emt 0:02:33]} Bg4 {[%emt 0:00:44]} 12. h3 {[%emt 0:00:05]} Be6 {[%emt 0:00:02]} 13. Kh2 {[%emt 0:02:52]} Qd7 {[%emt 0:00:11]} 14. Na4 {[%emt 0:01:41]} b6 {[%emt 0:00:10]} 15. b4 {[%emt 0:00:02]} cxb4 {[%emt 0:00:39]} 16. axb4 {[%emt 0:00:01]} Rac8 {[%emt 0:00:13]} 17. b5 {[%emt 0:01:30]} Nd8 {[%emt 0:01:07]} 18. Rxc8 {[%emt 0:01:29]} Nxc8 {[%emt 0:00:14]} 19. Qb3 {[%emt 0:01:26]} Nd6 {[%emt 0:00:23]} 20. Rb1 {[%emt 0:00:00]} Re8 {[%emt 0:00:31]} 21. Qb4 {[%emt 0:00:07]} Bf5 {[%emt 0:00:56]} 22. Nd4 {[%emt 0:01:02]} Ne6 {[%emt 0:01:50]} 23. Nxf5 {[%emt 0:00:05]} Nxf5 {[%emt 0:00:01]} 24. Nc3 {[%emt 0:00:10]} Nc7 {[%emt 0:01:15]} 25. Bf4 {[%emt 0:00:24]} Bxc3 {[%emt 0:00:59]} 26. Qxc3 {[%emt 0:00:02]} Nxb5 {[%emt 0:00:01]} 27. Qf6 {[%emt 0:02:45]} Re6 {[%emt 0:01:35]} 28. Qb2 {[%emt 0:00:01]} a6 {[%emt 0:01:51]} 29. e4 {[%emt 0:00:06]} dxe4 {[%emt 0:00:51]} 30. dxe4 {[%emt 0:00:02]} Ne7 {[%emt 0:00:36]} 31. Bxh6 {[%emt 0:00:19]} Qd4 {[%emt 0:00:20]} 32. Be3 {[%emt 0:00:56]} Qxb2 {[%emt 0:00:36]} 33. Rxb2 {[%emt 0:00:01]} Nc8 {[%emt 0:00:13]} 34. Rc2 {[%emt 0:00:11]} Nca7 {[%emt 0:00:15]} 35. f4 {[%emt 0:00:09]} a5 {[%emt 0:00:11]} 36. e5 {[%emt 0:00:03]} Na3 {[%emt 0:01:17]} 37. Rc1 {[%emt 0:00:09]} a4 {[%emt 0:00:44]} 38. Bd5 {[%emt 0:00:04]} Re7 {[%emt 0:00:00]} 39. Bxb6 {[%emt 0:00:10]} N7b5 {[%emt 0:00:02]} 40. Rc8+ {[%emt 0:00:14]} Kh7 {[%emt 0:00:18]} 41. Bd8 {[%emt 0:00:20]} Re8 {[%emt 0:00:12]} 42. Bxf7 {[%emt 0:00:12]} Rf8 {[%emt 0:00:01]} 43. Be6 {[%emt 0:00:13]} Nc2 {[%emt 0:00:46]} 44. Rb8 {[%emt 0:00:10]} Ncd4 {[%emt 0:00:05]} 45. Rb7+ {[%emt 0:00:05]} Kh8 {[%emt 0:00:02]} 46. Bf6+ {[%emt 0:00:07]} Rxf6 {[%emt 0:00:02]} 47. exf6 {[%emt 0:00:01]} a3 {[%emt 0:00:08]} 48. Rb8+ {[%emt 0:00:19]} Kh7 {[%emt 0:00:04]} 49. Bg8+ {[%emt 0:00:04]} Kh6 {[%emt 0:00:16]} 50. Bc4 {[%emt 0:00:18]} 1-0

[Event "FIDE Women World Rapid 2024"]
[Site "New York"]
[Date "2024.12.27"]
[Round "5.24"]
[White "Derlich, Sarah Sima"]
[Black "Mamedjarova, Zeinab"]
[Result "0-1"]
[ECO "B01"]
[WhiteElo "1861"]
[BlackElo "2145"]
[Annotator "NA"]
[PlyCount "24"]
[EventDate "2024.12.14"]
[EventType "swiss"]
[EventCountry "USA"]
[SourceTitle "playchess.com"]
[Source "ChessBase"]
[SourceQuality "1"]
[TimeControl "900+10"]

1. e4 {[%emt 0:00:03]} d5 {[%emt 0:00:43]} 2. exd5 {[%emt 0:00:06]} Qxd5 {[%emt 0:00:02]} 3. Nc3 {[%emt 0:00:05]} Qd8 {[%emt 0:00:01]} 4. d4 {[%emt 0:00:46]} Nf6 {[%emt 0:00:10]} 5. Nf3 {[%emt 0:00:38]} Bg4 {[%emt 0:00:03]} 6. h3 {[%emt 0:00:14]} Bxf3 {[%emt 0:00:02]} 7. Qxf3 {[%emt 0:00:03]} c6 {[%emt 0:00:01]} 8. Be3 {[%emt 0:00:05]} e6 {[%emt 0:00:03]} 9. a3 {[%emt 0:00:11]} Qa5 {[%emt 0:00:06]} 10. O-O-O {[%emt 0:02:13]} Bxa3 {[%emt 0:00:18]} 11. Bc4 {[%emt 0:03:58]} Qxc3 {[%emt 0:00:14]} 12. bxa3 {[%emt 0:03:28]} Qxc4 {[%emt 0:00:03]} 0-1